[Event "Marienbad IM-III 2022"]
[Site "Marianske Lazne"]
[Date "2022.01.15"]
[Round "1.22"]
[White "Dev, Shah"]
[Black "Kantorik, Marian"]
[Result "1-0"]
[ECO "D11"]
[WhiteElo "2243"]
[BlackElo "2209"]
[Annotator "ChessBase"]
[PlyCount "47"]
[EventDate "2022.01.15"]
[EventType "tourn"]
[EventCountry "CZE"]
[SourceTitle "playchess.com"]
[Source "ChessBase"]
[SourceQuality "1"]
[TimeControl "40/5400+30:1800+30"]

1. d4 {[%emt 0:00:14]} d5 {[%emt 0:00:24]} 2. c4 {[%emt 0:00:05]} c6 {[%emt 0:00:14]} 3. Nf3 {[%emt 0:00:07]} dxc4 {[%emt 0:00:23]} 4. g3 {[%emt 0:01:12]} Nf6 {[%emt 0:00:26]} 5. Bg2 {[%emt 0:00:13]} g6 {[%emt 0:00:09]} 6. O-O {[%emt 0:03:51]} Bg7 {[%emt 0:00:15]} 7. Ne5 {[%emt 0:01:47]} Be6 {[%emt 0:06:34]} 8. Na3 {[%emt 0:02:44]} Nbd7 {[%emt 0:05:42]} 9. Naxc4 {[%emt 0:04:22]} Nxe5 {[%emt 0:01:40]} 10. Nxe5 {[%emt 0:00:07]} O-O {[%emt 0:02:02]} 11. e4 {[%emt 0:03:12]} Nd7 {[%emt 0:07:24]} 12. Nf3 {[%emt 0:04:25]} Bc4 {[%emt 0:06:00]} 13. Re1 {[%emt 0:00:25]} e5 {[%emt 0:02:21]} 14. Qc2 {[%emt 0:09:32]} Ba6 {[%emt 0:01:05]} 15. Bg5 {[%emt 0:04:21]} Qb6 {[%emt 0:02:26]} 16. Bh3 {[%emt 0:00:45]} h6 {[%emt 0:05:56]} 17. Bxd7 {[%emt 0:09:48]} hxg5 {[%emt 0:00:56]} 18. dxe5 {[%emt 0:00:07]} Qd8 {[%emt 0:12:07]} 19. e6 {[%emt 0:10:15]} Kh8 {[%emt 0:13:14]} 20. e5 {[%emt 0:13:32]} Qe7 {[%emt 0:12:58]} 21. Rad1 {[%emt 0:07:42]} Rad8 {[%emt 0:04:03]} 22. exf7 {[%emt 0:01:25]} Rxf7 {[%emt 0:04:38]} 23. Bg4 {[%emt 0:01:41]} Rdf8 {[%emt 0:05:09]} 24. Qxg6 {[%emt 0:00:24]} 1-0

[Event "Marienbad IM-III 2022"]
[Site "Marianske Lazne"]
[Date "2022.01.15"]
[Round "1.23"]
[White "Krawczyk, Flawian"]
[Black "Schmider, Niklas"]
[Result "1/2-1/2"]
[ECO "C77"]
[WhiteElo "2114"]
[BlackElo "2330"]
[Annotator "ChessBase"]
[PlyCount "49"]
[EventDate "2022.01.15"]
[EventType "tourn"]
[EventCountry "CZE"]
[SourceTitle "playchess.com"]
[Source "ChessBase"]
[SourceQuality "1"]
[TimeControl "40/5400+30:1800+30"]

1. e4 {[%emt 0:00:10]} e5 {[%emt 0:00:11]} 2. Nf3 {[%emt 0:00:07]} Nc6 {[%emt 0:00:07]} 3. Bb5 {[%emt 0:00:04]} a6 {[%emt 0:00:05]} 4. Ba4 {[%emt 0:00:04]} Nf6 {[%emt 0:00:06]} 5. d3 {[%emt 0:00:04]} Bc5 {[%emt 0:01:12]} 6. Nc3 {[%emt 0:01:15]} b5 {[%emt 0:00:19]} 7. Bb3 {[%emt 0:00:06]} d6 {[%emt 0:00:07]} 8. Nd5 {[%emt 0:00:05]} h6 {[%emt 0:00:27]} 9. c3 {[%emt 0:00:07]} Be6 {[%emt 0:02:36]} 10. Nxf6+ {[%emt 0:00:38]} Qxf6 {[%emt 0:00:08]} 11. O-O {[%emt 0:00:19]} O-O {[%emt 0:02:22]} 12. Bxe6 {[%emt 0:00:16]} fxe6 {[%emt 0:00:12]} 13. Be3 {[%emt 0:00:44]} Bxe3 {[%emt 0:10:35]} 14. fxe3 {[%emt 0:00:38]} Ne7 {[%emt 0:02:14]} 15. a4 {[%emt 0:08:30]} Rab8 {[%emt 0:28:47]} 16. axb5 {[%emt 0:05:03]} Rxb5 {[%emt 0:01:18]} 17. Qe2 {[%emt 0:02:43]} Rb6 {[%emt 0:01:31]} 18. Nd2 {[%emt 0:02:19]} Qg5 {[%emt 0:01:24]} 19. Rxf8+ {[%emt 0:00:12]} Kxf8 {[%emt 0:00:07]} 20. Nc4 {[%emt 0:00:19]} Rc6 {[%emt 0:00:16]} 21. Qf2+ {[%emt 0:07:06]} Kg8 {[%emt 0:02:18]} 22. h4 {[%emt 0:05:43]} Qg4 {[%emt 0:04:30]} 23. g3 {[%emt 0:01:37]} Ng6 {[%emt 0:03:53]} 24. Kh2 {[%emt 0:01:06]} d5 {[%emt 0:08:29]} 25. Nd2 {[%emt 0:04:48]} 1/2-1/2

[Event "Marienbad IM-III 2022"]
[Site "Marianske Lazne"]
[Date "2022.01.15"]
[Round "1.24"]
[White "Hollan, Martin"]
[Black "Bubalovic, Davorin"]
[Result "1-0"]
[ECO "B90"]
[WhiteElo "2361"]
[BlackElo "2220"]
[Annotator "ChessBase"]
[PlyCount "103"]
[EventDate "2022.01.15"]
[EventType "tourn"]
[EventCountry "CZE"]
[SourceTitle "playchess.com"]
[Source "ChessBase"]
[SourceQuality "1"]
[TimeControl "40/5400+30:1800+30"]

1. e4 {[%emt 0:09:49]} c5 {[%emt 0:00:08]} 2. Nf3 {[%emt 0:00:10]} d6 {[%emt 0:00:07]} 3. d4 {[%emt 0:00:11]} cxd4 {[%emt 0:00:07]} 4. Nxd4 {[%emt 0:00:09]} Nf6 {[%emt 0:00:08]} 5. Nc3 {[%emt 0:00:17]} a6 {[%emt 0:00:06]} 6. Be3 {[%emt 0:00:28]} e5 {[%emt 0:00:07]} 7. Nde2 {[%emt 0:00:13]} Be7 {[%emt 0:08:37]} 8. Ng3 {[%emt 0:00:37]} O-O {[%emt 0:01:52]} 9. Bc4 {[%emt 0:02:38]} Nc6 {[%emt 0:02:28]} 10. O-O {[%emt 0:00:26]} Be6 {[%emt 0:03:23]} 11. Nd5 {[%emt 0:01:02]} Rc8 {[%emt 0:04:06]} 12. Bb6 {[%emt 0:02:48]} Qd7 {[%emt 0:01:07]} 13. c3 {[%emt 0:00:35]} Bd8 {[%emt 0:00:48]} 14. Bxd8 {[%emt 0:16:05]} Qxd8 {[%emt 0:00:26]} 15. a4 {[%emt 0:00:43]} Bxd5 {[%emt 0:01:59]} 16. exd5 {[%emt 0:02:25]} Ne7 {[%emt 0:00:23]} 17. Ba2 {[%emt 0:06:58]} Re8 {[%emt 0:05:21]} 18. c4 {[%emt 0:03:13]} Qa5 {[%emt 0:05:52]} 19. Qb3 {[%emt 0:01:54]} h5 {[%emt 0:09:49]} 20. Qa3 {[%emt 0:02:44]} h4 {[%emt 0:21:45]} 21. b4 {[%emt 0:01:22]} Qb6 {[%emt 0:00:19]} 22. a5 {[%emt 0:04:47]} Qd4 {[%emt 0:00:32]} 23. Rad1 {[%emt 0:02:29]} Qf4 {[%emt 0:03:07]} 24. Ne2 {[%emt 0:03:08]} Qg4 {[%emt 0:00:58]} 25. Rfe1 {[%emt 0:03:11]} Nf5 {[%emt 0:02:20]} 26. h3 {[%emt 0:01:18]} Qg5 {[%emt 0:01:33]} 27. Qf3 {[%emt 0:10:21]} g6 {[%emt 0:10:07]} 28. c5 {[%emt 0:05:29]} e4 {[%emt 0:04:01]} 29. Qc3 {[%emt 0:08:42]} Nh5 {[%emt 0:02:07]} 30. Bb1 {[%emt 0:07:22]} e3 {[%emt 0:00:22]} 31. Bxf5 {[%emt 0:01:58]} exf2+ {[%emt 0:00:17]} 32. Kxf2 {[%emt 0:00:04]} Qxf5+ {[%emt 0:00:13]} 33. Qf3 {[%emt 0:01:16]} Qxf3+ {[%emt 0:00:42]} 34. gxf3 {[%emt 0:00:05]} dxc5 {[%emt 0:00:04]} 35. d6 {[%emt 0:00:26]} Red8 {[%emt 0:00:05]} 36. Nc3 {[%emt 0:02:33]} Nf6 {[%emt 0:03:21]} 37. b5 {[%emt 0:00:14]} axb5 {[%emt 0:04:17]} 38. Nxb5 {[%emt 0:00:12]} Ra8 {[%emt 0:01:24]} 39. Re7 {[%emt 0:00:26]} Rd7 {[%emt 0:00:56]} 40. Nc7 {[%emt 0:00:49]} Rad8 {[%emt 0:02:47]} 41. Rxd7 {[%emt 0:02:36]} Nxd7 {[%emt 0:05:31]} 42. Rb1 {[%emt 0:06:47]} Ne5 {[%emt 0:08:36]} 43. Rxb7 {[%emt 0:01:57]} Rxd6 {[%emt 0:01:06]} 44. a6 {[%emt 0:01:04]} Rd2+ {[%emt 0:00:15]} 45. Ke3 {[%emt 0:02:57]} Nc4+ {[%emt 0:02:28]} 46. Kf4 {[%emt 0:02:12]} Kg7 {[%emt 0:06:27]} 47. Ne6+ {[%emt 0:08:10]} Kf6 {[%emt 0:06:21]} 48. Ng5 {[%emt 0:01:47]} Nd6 {[%emt 0:01:52]} 49. Rxf7+ {[%emt 0:00:30]} Nxf7 {[%emt 0:00:04]} 50. Ne4+ {[%emt 0:00:03]} Ke6 {[%emt 0:00:24]} 51. Nxd2 {[%emt 0:00:04]} g5+ {[%emt 0:01:24]} 52. Ke4 1-0

[Event "Marienbad IM-III 2022"]
[Site "Marianske Lazne"]
[Date "2022.01.15"]
[Round "1.25"]
[White "Pourquet, Matthieu"]
[Black "Mannion, Stephen R"]
[Result "1/2-1/2"]
[ECO "A09"]
[WhiteElo "2169"]
[BlackElo "2267"]
[Annotator "ChessBase"]
[PlyCount "70"]
[EventDate "2022.01.15"]
[EventType "tourn"]
[EventCountry "CZE"]
[SourceTitle "playchess.com"]
[Source "ChessBase"]
[SourceQuality "1"]
[TimeControl "40/5400+30:1800+30"]

1. Nf3 {[%emt 0:00:09]} d5 {[%emt 0:00:06]} 2. c4 {[%emt 0:00:11]} d4 {[%emt 0:00:09]} 3. b4 {[%emt 0:01:49]} g6 {[%emt 0:00:08]} 4. g3 {[%emt 0:00:58]} Bg7 {[%emt 0:00:13]} 5. Bg2 {[%emt 0:00:09]} d3 {[%emt 0:15:03]} 6. Nc3 {[%emt 0:00:12]} Nc6 {[%emt 0:00:26]} 7. b5 {[%emt 0:14:15]} Nb4 {[%emt 0:07:49]} 8. O-O {[%emt 0:00:25]} Bf5 {[%emt 0:22:50]} 9. Ne1 {[%emt 0:13:59]} Bg4 {[%emt 0:13:26]} 10. Nf3 {[%emt 0:23:47]} dxe2 {[%emt 0:01:44]} 11. Qxe2 {[%emt 0:00:15]} Qd3 {[%emt 0:01:38]} 12. Qxd3 {[%emt 0:03:29]} Nxd3 {[%emt 0:00:07]} 13. Ba3 {[%emt 0:00:16]} O-O-O {[%emt 0:08:52]} 14. Ng5 {[%emt 0:03:51]} Ne5 {[%emt 0:00:28]} 15. Bb4 {[%emt 0:05:51]} h6 {[%emt 0:03:24]} 16. Nge4 {[%emt 0:00:23]} Nd3 {[%emt 0:02:46]} 17. Rab1 {[%emt 0:01:24]} Bd4 {[%emt 0:02:28]} 18. Ba3 {[%emt 0:05:36]} Be6 {[%emt 0:03:32]} 19. Nd5 {[%emt 0:02:49]} Bxd5 {[%emt 0:00:40]} 20. cxd5 {[%emt 0:00:04]} f5 {[%emt 0:00:31]} 21. Nc3 {[%emt 0:00:24]} Rh7 {[%emt 0:00:44]} 22. Ne2 {[%emt 0:02:01]} Bb6 {[%emt 0:01:22]} 23. Rb3 {[%emt 0:00:06]} Nc5 {[%emt 0:01:26]} 24. Bxc5 {[%emt 0:00:28]} Bxc5 {[%emt 0:00:21]} 25. Nf4 {[%emt 0:00:12]} Rd6 {[%emt 0:02:49]} 26. Re1 {[%emt 0:05:21]} Nf6 {[%emt 0:00:54]} 27. Rd3 {[%emt 0:03:44]} g5 {[%emt 0:02:47]} 28. Ne6 {[%emt 0:00:04]} Bb6 {[%emt 0:00:15]} 29. h3 {[%emt 0:03:00]} Rf7 {[%emt 0:00:16]} 30. Re5 {[%emt 0:02:01]} Nd7 {[%emt 0:01:49]} 31. Re1 {[%emt 0:00:05]} Nc5 {[%emt 0:00:19]} 32. Nxc5 {[%emt 0:01:44]} Bxc5 {[%emt 0:00:03]} 33. Kf1 {[%emt 0:03:40]} f4 {[%emt 0:02:20]} 34. g4 {[%emt 0:00:15]} b6 {[%emt 0:01:48]} 35. Be4 {[%emt 0:01:02]} Kb7 {[%emt 0:00:28]} 1/2-1/2

[Event "Marienbad IM-III 2022"]
[Site "Marianske Lazne"]
[Date "2022.01.18"]
[Round "5.22"]
[White "Hollan, Martin"]
[Black "Dev, Shah"]
[Result "1/2-1/2"]
[ECO "C54"]
[WhiteElo "2361"]
[BlackElo "2243"]
[Annotator "RC"]
[PlyCount "81"]
[EventDate "2022.01.15"]
[EventType "tourn"]
[EventCountry "CZE"]
[SourceTitle "playchess.com"]
[Source "ChessBase"]
[SourceQuality "1"]
[TimeControl "40/5400+30:1800+30"]

1. e4 {[%emt 0:00:02]} e5 {[%emt 0:07:51]} 2. Nf3 {[%emt 0:00:07]} Nc6 {[%emt 0:00:07]} 3. Bc4 {[%emt 0:00:07]} Bc5 {[%emt 0:00:13]} 4. c3 {[%emt 0:00:06]} Nf6 {[%emt 0:00:05]} 5. d4 {[%emt 0:00:06]} exd4 {[%emt 0:00:07]} 6. b4 {[%emt 0:00:07]} Be7 {[%emt 0:01:48]} 7. e5 {[%emt 0:00:45]} Ne4 {[%emt 0:00:24]} 8. b5 {[%emt 0:00:19]} Na5 {[%emt 0:00:06]} 9. Bd3 {[%emt 0:00:19]} Nxc3 {[%emt 0:04:15]} 10. Nxc3 {[%emt 0:00:08]} dxc3 {[%emt 0:00:04]} 11. Qa4 {[%emt 0:00:09]} c6 {[%emt 0:05:29]} 12. O-O {[%emt 0:03:12]} cxb5 {[%emt 0:05:59]} 13. Bxb5 {[%emt 0:01:40]} O-O {[%emt 0:00:41]} 14. Rd1 {[%emt 0:10:14]} a6 {[%emt 0:13:47]} 15. Bd3 {[%emt 0:02:23]} d5 {[%emt 0:20:57]} 16. exd6 {[%emt 0:00:34]} Bf6 {[%emt 0:00:13]} 17. d7 {[%emt 0:40:10]} Bxd7 {[%emt 0:03:00]} 18. Bxh7+ {[%emt 0:00:26]} Kxh7 {[%emt 0:00:07]} 19. Rxd7 {[%emt 0:00:05]} Qe8 {[%emt 0:03:19]} 20. Bg5 {[%emt 0:07:25]} Rd8 {[%emt 0:06:34]} 21. Bxf6 {[%emt 0:01:29]} gxf6 {[%emt 0:00:06]} 22. Qc2+ {[%emt 0:06:30]} Kg7 {[%emt 0:01:03]} 23. Rc7 {[%emt 0:01:03]} Qb5 {[%emt 0:06:36]} 24. Rxc3 {[%emt 0:04:15]} Rd5 {[%emt 0:00:37]} 25. Nd4 {[%emt 0:01:59]} Qb4 {[%emt 0:05:49]} 26. Rg3+ {[%emt 0:07:44]} Rg5 {[%emt 0:00:01]} 27. Qe4 {[%emt 0:04:47]} Nc6 {[%emt 0:01:02]} 28. Rh3 {[%emt 0:02:10]} Rg8 {[%emt 0:01:40]} 29. Nf5+ {[%emt 0:06:02]} Kf8 {[%emt 0:00:10]} 30. Qxb4+ {[%emt 0:00:26]} Nxb4 {[%emt 0:00:04]} 31. Ne3 {[%emt 0:00:26]} Nd5 {[%emt 0:01:34]} 32. Nxd5 {[%emt 0:00:27]} Rxd5 {[%emt 0:00:06]} 33. Rf3 {[%emt 0:00:37]} Kg7 {[%emt 0:00:31]} 34. h4 {[%emt 0:00:35]} Rgd8 {[%emt 0:00:03]} 35. Rg3+ {[%emt 0:00:25]} Kh7 {[%emt 0:00:35]} 36. Rf3 {[%emt 0:00:27]} Rd1+ {[%emt 0:00:14]} 37. Rxd1 {[%emt 0:00:04]} Rxd1+ {[%emt 0:00:06]} 38. Kh2 {[%emt 0:00:03]} Rd2 {[%emt 0:00:53]} 39. Rxf6 {[%emt 0:00:46]} Kg7 {[%emt 0:00:05]} 40. Rf3 {[%emt 0:01:15]} Rxa2 {[%emt 0:00:07]} 41. h5 {[%emt 0:07:45]} 1/2-1/2

[Event "Marienbad IM-III 2022"]
[Site "Marianske Lazne"]
[Date "2022.01.18"]
[Round "5.24"]
[White "Mannion, Stephen R"]
[Black "Kantorik, Marian"]
[Result "1/2-1/2"]
[ECO "B93"]
[WhiteElo "2267"]
[BlackElo "2209"]
[Annotator "RC"]
[PlyCount "22"]
[EventDate "2022.01.15"]
[EventType "tourn"]
[EventCountry "CZE"]
[SourceTitle "playchess.com"]
[Source "ChessBase"]
[SourceQuality "1"]
[TimeControl "40/5400+30:1800+30"]

1. e4 {[%emt 0:00:02]} c5 {[%emt 0:05:33]} 2. Nf3 {[%emt 0:00:08]} d6 {[%emt 0:00:14]} 3. d4 {[%emt 0:00:06]} cxd4 {[%emt 0:00:56]} 4. Nxd4 {[%emt 0:00:05]} Nf6 {[%emt 0:00:18]} 5. Nc3 {[%emt 0:00:06]} a6 {[%emt 0:00:09]} 6. f4 {[%emt 0:00:13]} e5 {[%emt 0:00:40]} 7. Nf3 {[%emt 0:00:14]} Nbd7 {[%emt 0:00:27]} 8. a4 {[%emt 0:00:36]} Be7 {[%emt 0:00:57]} 9. Bc4 {[%emt 0:00:21]} O-O {[%emt 0:03:25]} 10. O-O {[%emt 0:00:34]} Qc7 {[%emt 0:03:48]} 11. Qe2 {[%emt 0:01:04]} exf4 {[%emt 0:05:03]} 1/2-1/2

[Event "Marienbad IM-III 2022"]
[Site "Marianske Lazne"]
[Date "2022.01.22"]
[Round "9.23"]
[White "Bubalovic, Davorin"]
[Black "Krawczyk, Flawian"]
[Result "1/2-1/2"]
[ECO "B90"]
[WhiteElo "2220"]
[BlackElo "2114"]
[Annotator "ChessBase"]
[PlyCount "120"]
[EventDate "2022.01.15"]
[EventType "tourn"]
[EventCountry "CZE"]
[SourceTitle "playchess.com"]
[Source "ChessBase"]
[SourceQuality "1"]
[TimeControl "40/5400+30:1800+30"]

1. e4 {[%emt 0:00:01]} c5 {[%emt 0:00:06]} 2. Nf3 {[%emt 0:00:05]} d6 {[%emt 0:00:04]} 3. d4 {[%emt 0:00:05]} cxd4 {[%emt 0:00:04]} 4. Nxd4 {[%emt 0:00:04]} Nf6 {[%emt 0:00:03]} 5. Nc3 {[%emt 0:00:12]} a6 {[%emt 0:00:04]} 6. h3 {[%emt 0:00:09]} e5 {[%emt 0:00:08]} 7. Nde2 {[%emt 0:00:37]} h5 {[%emt 0:00:44]} 8. Bg5 {[%emt 0:00:29]} Be7 {[%emt 0:00:55]} 9. Bxf6 {[%emt 0:01:27]} Bxf6 {[%emt 0:00:05]} 10. Nd5 {[%emt 0:00:06]} Nc6 {[%emt 0:01:43]} 11. Nec3 {[%emt 0:00:41]} Bg5 {[%emt 0:01:14]} 12. h4 {[%emt 0:04:59]} Bh6 {[%emt 0:01:05]} 13. g3 {[%emt 0:00:18]} g6 {[%emt 0:00:24]} 14. Bh3 {[%emt 0:00:42]} Be6 {[%emt 0:00:13]} 15. Kf1 {[%emt 0:00:52]} O-O {[%emt 0:00:36]} 16. Kg2 {[%emt 0:01:36]} b5 {[%emt 0:03:56]} 17. a4 {[%emt 0:01:59]} b4 {[%emt 0:01:10]} 18. Ne2 {[%emt 0:00:11]} a5 {[%emt 0:02:59]} 19. c3 {[%emt 0:02:00]} Rb8 {[%emt 0:02:58]} 20. Qd3 {[%emt 0:04:14]} Ne7 {[%emt 0:09:07]} 21. Nxe7+ {[%emt 0:09:45]} Qxe7 {[%emt 0:00:22]} 22. Rhd1 {[%emt 0:00:47]} Rfd8 {[%emt 0:00:19]} 23. Bxe6 {[%emt 0:04:30]} fxe6 {[%emt 0:02:08]} 24. c4 {[%emt 0:03:59]} Rbc8 {[%emt 0:03:19]} 25. b3 {[%emt 0:03:20]} Rc7 {[%emt 0:03:04]} 26. Ng1 {[%emt 0:01:21]} Bg7 {[%emt 0:15:33]} 27. Rac1 {[%emt 0:04:05]} Rcd7 {[%emt 0:01:25]} 28. Nf3 {[%emt 0:00:35]} Bf6 {[%emt 0:01:37]} 29. Qe3 {[%emt 0:02:27]} Rc7 {[%emt 0:07:15]} 30. c5 {[%emt 0:19:17]} d5 {[%emt 0:02:30]} 31. c6 {[%emt 0:00:31]} d4 {[%emt 0:00:25]} 32. Qd3 {[%emt 0:00:33]} Rdc8 {[%emt 0:01:45]} 33. Qa6 {[%emt 0:06:16]} Qd6 {[%emt 0:00:22]} 34. Rc4 {[%emt 0:00:17]} Bg7 {[%emt 0:04:39]} 35. Ne1 {[%emt 0:02:30]} Qe7 {[%emt 0:05:04]} 36. Qxa5 {[%emt 0:07:15]} g5 {[%emt 0:01:27]} 37. Qxb4 {[%emt 0:03:46]} Qxb4 {[%emt 0:00:47]} 38. Rxb4 {[%emt 0:00:01]} gxh4 {[%emt 0:00:08]} 39. Rc4 {[%emt 0:01:23]} hxg3 {[%emt 0:00:05]} 40. fxg3 {[%emt 0:00:11]} Bh6 {[%emt 0:02:08]} 41. b4 {[%emt 0:31:06]} h4 {[%emt 0:30:57]} 42. Nf3 {[%emt 0:03:18]} Rxc6 {[%emt 0:00:34]} 43. Rxc6 {[%emt 0:00:07]} Rxc6 {[%emt 0:00:06]} 44. Nxe5 {[%emt 0:02:55]} Rc2+ {[%emt 0:00:07]} 45. Kh3 {[%emt 0:00:35]} hxg3 {[%emt 0:00:05]} 46. Kxg3 Bd2 {[%emt 0:01:24]} 47. Rb1 {[%emt 0:01:56]} Kg7 {[%emt 0:01:14]} 48. b5 {[%emt 0:00:45]} Kf6 {[%emt 0:00:08]} 49. Nf3 {[%emt 0:01:09]} Ba5 {[%emt 0:00:09]} 50. b6 {[%emt 0:00:14]} d3 {[%emt 0:00:46]} 51. b7 {[%emt 0:05:04]} Bc7+ {[%emt 0:00:06]} 52. e5+ {[%emt 0:00:04]} Kf5 {[%emt 0:00:05]} 53. b8=Q Bxb8 {[%emt 0:00:24]} 54. Rxb8 {[%emt 0:02:19]} Ke4 {[%emt 0:00:14]} 55. Rb6 {[%emt 0:02:31]} Rc3 {[%emt 0:03:57]} 56. Rb4+ {[%emt 0:00:00]} Ke3 {[%emt 0:00:00]} 57. Rd4 {[%emt 0:00:00]} Rc8 {[%emt 0:00:00]} 58. Rd6 {[%emt 0:00:00]} Rg8+ {[%emt 0:00:00]} 59. Kh2 {[%emt 0:00:00]} Kxf3 {[%emt 0:00:00]} 60. Rxd3+ {[%emt 0:00:00]} Ke4 {[%emt 0:00:00]} 1/2-1/2